{"text_format":"3","workbook":"xlsx","n_sheets":5,"sheets":["Faktura","Kupci","Fakture – Glavno","Pojedinosti o fakturi","O tablici za praćenje fakture"],"not_rendered":{"defined_names":8},"read":"whole","date_system":"1900"}

{"sheet":"Faktura","index":0,"n_rows":39,"n_cols":7,"rows_kept":39,"merged":[[1,1,1,2],[1,3,1,4],[1,5,1,6],[2,1,2,2],[2,3,2,4],[2,5,2,6],[3,3,3,4],[4,3,4,4],[5,3,5,4],[37,1,37,4],[38,1,38,4]]}
[null,"Naziv tvrtke "]
[null,"Adresa",null,"T: Telefonski broj",null,"E-pošta"]
[null,"Poštanski broj i grad",null,"F: Broj faksa",null,"Web-mjesto"]
[null,"Primatelj računa:",{"$f":"IFERROR(VLOOKUP(VLOOKUP(rngInvoice,FaktureGlavno[],2,FALSE),PopisKupaca[],3,TRUE),\"\")","v":"Tailspin Toys "},{"$f":"\"Telefon: \"&IFERROR(VLOOKUP(VLOOKUP(rngInvoice,FaktureGlavno[],2,FALSE),PopisKupaca[],9,FALSE),\"\")","v":"Telefon: 432-555-0178"},null,"Broj računa:","3-456-2"]
[null,"Adresa:",{"$f":"IFERROR(IF((VLOOKUP(VLOOKUP(rngInvoice,FaktureGlavno[],2,FALSE),PopisKupaca[],5,FALSE))=\"\",\"\",(VLOOKUP(VLOOKUP(rngInvoice,FaktureGlavno[],2,FALSE),PopisKupaca[],5,FALSE))),\"\")","v":"Ulica trešanja 34"},{"$f":"\"Faks:     \"&IFERROR(VLOOKUP(VLOOKUP(rngInvoice,FaktureGlavno[],2,FALSE),PopisKupaca[],11,FALSE),\"\")","v":"Faks:     432-555-0187"},null,"Datum izdavanja računa:",{"$f":"IFERROR(IF(VLOOKUP(rngInvoice,FaktureGlavno[],3,FALSE)=\"\",\"\",VLOOKUP(rngInvoice,FaktureGlavno[],3,FALSE)),\"\")","v":{"v":43685,"d":"4368500.00%"}}]
[null,null,{"$f":"IFERROR(VLOOKUP(VLOOKUP(rngInvoice,FaktureGlavno[],2,FALSE),PopisKupaca[],6,FALSE)&\", \"& VLOOKUP(VLOOKUP(G4,FaktureGlavno[],2,FALSE),PopisKupaca[],7,FALSE)&\" \"&VLOOKUP(VLOOKUP(G4,FaktureGlavno[],2,FALSE),PopisKupaca[],8,FALSE),\"\")","v":"Gospić, Ličko-senjska 123456"},{"$f":"\"Adresa e-pošte: \"&IFERROR(VLOOKUP(VLOOKUP(rngInvoice,FaktureGlavno[],2,FALSE),PopisKupaca[],10,FALSE),\"\")","v":"Adresa e-pošte: netko@example.com"}]
[null,{"$f":"\"Faktura za: \"&IFERROR(VLOOKUP(rngInvoice,FaktureGlavno[],4),\"\")","v":"Faktura za: Projekt 2"}]
[null,"Broj stavke","Opis","Količina","Jedinična cijena","Popust","Cijena"]
[null,{"$f":"IFERROR(INDEX(PojedinostiOFakturi[],SMALL(IF(PojedinostiOFakturi[Broj računa]=rngInvoice,ROW(PojedinostiOFakturi[])-ROW(PojedinostiOFakturi[#Headers])), ROW(1:1)), MATCH($B$8, PojedinostiOFakturi[#Headers], 0)),\"\")","v":"Z4567"},{"$f":"IFERROR(INDEX(PojedinostiOFakturi[],SMALL(IF(PojedinostiOFakturi[Broj računa]=rngInvoice,ROW(PojedinostiOFakturi[])-ROW(PojedinostiOFakturi[#Headers])), ROW(1:1)), MATCH($C$8, PojedinostiOFakturi[#Headers], 0)),\"\")","v":"Račun 3-456-2,podatak 1"},{"$f":"IFERROR(INDEX(PojedinostiOFakturi[],SMALL(IF(PojedinostiOFakturi[Broj računa]=rngInvoice,ROW(PojedinostiOFakturi[])-ROW(PojedinostiOFakturi[#Headers])), ROW(1:1)), MATCH($D$8, PojedinostiOFakturi[#Headers], 0)),\"\")","v":39},{"$f":"IFERROR(INDEX(PojedinostiOFakturi[],SMALL(IF(PojedinostiOFakturi[Broj računa]=rngInvoice,ROW(PojedinostiOFakturi[])-ROW(PojedinostiOFakturi[#Headers])), ROW(1:1)), MATCH($E$8, PojedinostiOFakturi[#Headers], 0)),\"\")","v":{"v":5,"d":"5.00 kn"}},{"$f":"IFERROR(INDEX(PojedinostiOFakturi[],SMALL(IF(PojedinostiOFakturi[Broj računa]=rngInvoice,ROW(PojedinostiOFakturi[])-ROW(PojedinostiOFakturi[#Headers])), ROW(1:1)), MATCH($F$8, PojedinostiOFakturi[#Headers], 0)),\"\")","v":0},{"$f":"IFERROR((D9*E9)-F9,\"\")","v":{"v":195,"d":"195.00 kn"}}]
[null,{"$f":"IFERROR(INDEX(PojedinostiOFakturi[],SMALL(IF(PojedinostiOFakturi[Broj računa]=rngInvoice,ROW(PojedinostiOFakturi[])-ROW(PojedinostiOFakturi[#Headers])), ROW(2:2)), MATCH($B$8, PojedinostiOFakturi[#Headers], 0)),\"\")","v":"Z4568"},{"$f":"IFERROR(INDEX(PojedinostiOFakturi[],SMALL(IF(PojedinostiOFakturi[Broj računa]=rngInvoice,ROW(PojedinostiOFakturi[])-ROW(PojedinostiOFakturi[#Headers])), ROW(2:2)), MATCH($C$8, PojedinostiOFakturi[#Headers], 0)),\"\")","v":"Račun 3-456-2, podatak 2"},{"$f":"IFERROR(INDEX(PojedinostiOFakturi[],SMALL(IF(PojedinostiOFakturi[Broj računa]=rngInvoice,ROW(PojedinostiOFakturi[])-ROW(PojedinostiOFakturi[#Headers])), ROW(2:2)), MATCH($D$8, PojedinostiOFakturi[#Headers], 0)),\"\")","v":40},{"$f":"IFERROR(INDEX(PojedinostiOFakturi[],SMALL(IF(PojedinostiOFakturi[Broj računa]=rngInvoice,ROW(PojedinostiOFakturi[])-ROW(PojedinostiOFakturi[#Headers])), ROW(2:2)), MATCH($E$8, PojedinostiOFakturi[#Headers], 0)),\"\")","v":{"v":4,"d":"4.00 kn"}},{"$f":"IFERROR(INDEX(PojedinostiOFakturi[],SMALL(IF(PojedinostiOFakturi[Broj računa]=rngInvoice,ROW(PojedinostiOFakturi[])-ROW(PojedinostiOFakturi[#Headers])), ROW(2:2)), MATCH($F$8, PojedinostiOFakturi[#Headers], 0)),\"\")","v":{"v":5,"d":"5.00 kn"}},{"v":155,"d":"155.00 kn"}]
[null,{"$f":"IFERROR(INDEX(PojedinostiOFakturi[],SMALL(IF(PojedinostiOFakturi[Broj računa]=rngInvoice,ROW(PojedinostiOFakturi[])-ROW(PojedinostiOFakturi[#Headers])), ROW(3:3)), MATCH($B$8, PojedinostiOFakturi[#Headers], 0)),\"\")","v":"Z4569"},{"$f":"IFERROR(INDEX(PojedinostiOFakturi[],SMALL(IF(PojedinostiOFakturi[Broj računa]=rngInvoice,ROW(PojedinostiOFakturi[])-ROW(PojedinostiOFakturi[#Headers])), ROW(3:3)), MATCH($C$8, PojedinostiOFakturi[#Headers], 0)),\"\")","v":"Račun 3-456-2, podatak 3"},{"$f":"IFERROR(INDEX(PojedinostiOFakturi[],SMALL(IF(PojedinostiOFakturi[Broj računa]=rngInvoice,ROW(PojedinostiOFakturi[])-ROW(PojedinostiOFakturi[#Headers])), ROW(3:3)), MATCH($D$8, PojedinostiOFakturi[#Headers], 0)),\"\")","v":30},{"$f":"IFERROR(INDEX(PojedinostiOFakturi[],SMALL(IF(PojedinostiOFakturi[Broj računa]=rngInvoice,ROW(PojedinostiOFakturi[])-ROW(PojedinostiOFakturi[#Headers])), ROW(3:3)), MATCH($E$8, PojedinostiOFakturi[#Headers], 0)),\"\")","v":{"v":6,"d":"6.00 kn"}},{"$f":"IFERROR(INDEX(PojedinostiOFakturi[],SMALL(IF(PojedinostiOFakturi[Broj računa]=rngInvoice,ROW(PojedinostiOFakturi[])-ROW(PojedinostiOFakturi[#Headers])), ROW(3:3)), MATCH($F$8, PojedinostiOFakturi[#Headers], 0)),\"\")","v":{"v":7,"d":"7.00 kn"}},{"v":173,"d":"173.00 kn"}]
[null,{"$f":"IFERROR(INDEX(PojedinostiOFakturi[],SMALL(IF(PojedinostiOFakturi[Broj računa]=rngInvoice,ROW(PojedinostiOFakturi[])-ROW(PojedinostiOFakturi[#Headers])), ROW(4:4)), MATCH($B$8, PojedinostiOFakturi[#Headers], 0)),\"\")","v":"Z4570"},{"$f":"IFERROR(INDEX(PojedinostiOFakturi[],SMALL(IF(PojedinostiOFakturi[Broj računa]=rngInvoice,ROW(PojedinostiOFakturi[])-ROW(PojedinostiOFakturi[#Headers])), ROW(4:4)), MATCH($C$8, PojedinostiOFakturi[#Headers], 0)),\"\")","v":"Račun 3-456-2, podatak 4"},{"$f":"IFERROR(INDEX(PojedinostiOFakturi[],SMALL(IF(PojedinostiOFakturi[Broj računa]=rngInvoice,ROW(PojedinostiOFakturi[])-ROW(PojedinostiOFakturi[#Headers])), ROW(4:4)), MATCH($D$8, PojedinostiOFakturi[#Headers], 0)),\"\")","v":40},{"$f":"IFERROR(INDEX(PojedinostiOFakturi[],SMALL(IF(PojedinostiOFakturi[Broj računa]=rngInvoice,ROW(PojedinostiOFakturi[])-ROW(PojedinostiOFakturi[#Headers])), ROW(4:4)), MATCH($E$8, PojedinostiOFakturi[#Headers], 0)),\"\")","v":{"v":7,"d":"7.00 kn"}},{"$f":"IFERROR(INDEX(PojedinostiOFakturi[],SMALL(IF(PojedinostiOFakturi[Broj računa]=rngInvoice,ROW(PojedinostiOFakturi[])-ROW(PojedinostiOFakturi[#Headers])), ROW(4:4)), MATCH($F$8, PojedinostiOFakturi[#Headers], 0)),\"\")","v":0},{"v":280,"d":"280.00 kn"}]
[null,{"$f":"IFERROR(INDEX(PojedinostiOFakturi[],SMALL(IF(PojedinostiOFakturi[Broj računa]=rngInvoice,ROW(PojedinostiOFakturi[])-ROW(PojedinostiOFakturi[#Headers])), ROW(5:5)), MATCH($B$8, PojedinostiOFakturi[#Headers], 0)),\"\")","v":"Z4571"},{"$f":"IFERROR(INDEX(PojedinostiOFakturi[],SMALL(IF(PojedinostiOFakturi[Broj računa]=rngInvoice,ROW(PojedinostiOFakturi[])-ROW(PojedinostiOFakturi[#Headers])), ROW(5:5)), MATCH($C$8, PojedinostiOFakturi[#Headers], 0)),\"\")","v":"Račun 3-456-2, podatak 5"},{"$f":"IFERROR(INDEX(PojedinostiOFakturi[],SMALL(IF(PojedinostiOFakturi[Broj računa]=rngInvoice,ROW(PojedinostiOFakturi[])-ROW(PojedinostiOFakturi[#Headers])), ROW(5:5)), MATCH($D$8, PojedinostiOFakturi[#Headers], 0)),\"\")","v":10},{"$f":"IFERROR(INDEX(PojedinostiOFakturi[],SMALL(IF(PojedinostiOFakturi[Broj računa]=rngInvoice,ROW(PojedinostiOFakturi[])-ROW(PojedinostiOFakturi[#Headers])), ROW(5:5)), MATCH($E$8, PojedinostiOFakturi[#Headers], 0)),\"\")","v":{"v":4,"d":"4.00 kn"}},{"$f":"IFERROR(INDEX(PojedinostiOFakturi[],SMALL(IF(PojedinostiOFakturi[Broj računa]=rngInvoice,ROW(PojedinostiOFakturi[])-ROW(PojedinostiOFakturi[#Headers])), ROW(5:5)), MATCH($F$8, PojedinostiOFakturi[#Headers], 0)),\"\")","v":0},{"v":40,"d":"40.00 kn"}]
[null,{"$f":"IFERROR(INDEX(PojedinostiOFakturi[],SMALL(IF(PojedinostiOFakturi[Broj računa]=rngInvoice,ROW(PojedinostiOFakturi[])-ROW(PojedinostiOFakturi[#Headers])), ROW(6:6)), MATCH($B$8, PojedinostiOFakturi[#Headers], 0)),\"\")","v":"Z4572"},{"$f":"IFERROR(INDEX(PojedinostiOFakturi[],SMALL(IF(PojedinostiOFakturi[Broj računa]=rngInvoice,ROW(PojedinostiOFakturi[])-ROW(PojedinostiOFakturi[#Headers])), ROW(6:6)), MATCH($C$8, PojedinostiOFakturi[#Headers], 0)),\"\")","v":"Račun 3-456-2,podatak 6"},{"$f":"IFERROR(INDEX(PojedinostiOFakturi[],SMALL(IF(PojedinostiOFakturi[Broj računa]=rngInvoice,ROW(PojedinostiOFakturi[])-ROW(PojedinostiOFakturi[#Headers])), ROW(6:6)), MATCH($D$8, PojedinostiOFakturi[#Headers], 0)),\"\")","v":5},{"$f":"IFERROR(INDEX(PojedinostiOFakturi[],SMALL(IF(PojedinostiOFakturi[Broj računa]=rngInvoice,ROW(PojedinostiOFakturi[])-ROW(PojedinostiOFakturi[#Headers])), ROW(6:6)), MATCH($E$8, PojedinostiOFakturi[#Headers], 0)),\"\")","v":{"v":8,"d":"8.00 kn"}},{"$f":"IFERROR(INDEX(PojedinostiOFakturi[],SMALL(IF(PojedinostiOFakturi[Broj računa]=rngInvoice,ROW(PojedinostiOFakturi[])-ROW(PojedinostiOFakturi[#Headers])), ROW(6:6)), MATCH($F$8, PojedinostiOFakturi[#Headers], 0)),\"\")","v":0},{"v":40,"d":"40.00 kn"}]
[null,{"$f":"IFERROR(INDEX(PojedinostiOFakturi[],SMALL(IF(PojedinostiOFakturi[Broj računa]=rngInvoice,ROW(PojedinostiOFakturi[])-ROW(PojedinostiOFakturi[#Headers])), ROW(7:7)), MATCH($B$8, PojedinostiOFakturi[#Headers], 0)),\"\")","v":"Z4573"},{"$f":"IFERROR(INDEX(PojedinostiOFakturi[],SMALL(IF(PojedinostiOFakturi[Broj računa]=rngInvoice,ROW(PojedinostiOFakturi[])-ROW(PojedinostiOFakturi[#Headers])), ROW(7:7)), MATCH($C$8, PojedinostiOFakturi[#Headers], 0)),\"\")","v":"Račun 3-456-2,podatak 7"},{"$f":"IFERROR(INDEX(PojedinostiOFakturi[],SMALL(IF(PojedinostiOFakturi[Broj računa]=rngInvoice,ROW(PojedinostiOFakturi[])-ROW(PojedinostiOFakturi[#Headers])), ROW(7:7)), MATCH($D$8, PojedinostiOFakturi[#Headers], 0)),\"\")","v":70},{"$f":"IFERROR(INDEX(PojedinostiOFakturi[],SMALL(IF(PojedinostiOFakturi[Broj računa]=rngInvoice,ROW(PojedinostiOFakturi[])-ROW(PojedinostiOFakturi[#Headers])), ROW(7:7)), MATCH($E$8, PojedinostiOFakturi[#Headers], 0)),\"\")","v":{"v":6,"d":"6.00 kn"}},{"$f":"IFERROR(INDEX(PojedinostiOFakturi[],SMALL(IF(PojedinostiOFakturi[Broj računa]=rngInvoice,ROW(PojedinostiOFakturi[])-ROW(PojedinostiOFakturi[#Headers])), ROW(7:7)), MATCH($F$8, PojedinostiOFakturi[#Headers], 0)),\"\")","v":0},{"v":420,"d":"420.00 kn"}]
[null,{"$f":"IFERROR(INDEX(PojedinostiOFakturi[],SMALL(IF(PojedinostiOFakturi[Broj računa]=rngInvoice,ROW(PojedinostiOFakturi[])-ROW(PojedinostiOFakturi[#Headers])), ROW(8:8)), MATCH($B$8, PojedinostiOFakturi[#Headers], 0)),\"\")","v":"Z4574"},{"$f":"IFERROR(INDEX(PojedinostiOFakturi[],SMALL(IF(PojedinostiOFakturi[Broj računa]=rngInvoice,ROW(PojedinostiOFakturi[])-ROW(PojedinostiOFakturi[#Headers])), ROW(8:8)), MATCH($C$8, PojedinostiOFakturi[#Headers], 0)),\"\")","v":"Račun 3-456-2, podatak 8"},{"$f":"IFERROR(INDEX(PojedinostiOFakturi[],SMALL(IF(PojedinostiOFakturi[Broj računa]=rngInvoice,ROW(PojedinostiOFakturi[])-ROW(PojedinostiOFakturi[#Headers])), ROW(8:8)), MATCH($D$8, PojedinostiOFakturi[#Headers], 0)),\"\")","v":25},{"$f":"IFERROR(INDEX(PojedinostiOFakturi[],SMALL(IF(PojedinostiOFakturi[Broj računa]=rngInvoice,ROW(PojedinostiOFakturi[])-ROW(PojedinostiOFakturi[#Headers])), ROW(8:8)), MATCH($E$8, PojedinostiOFakturi[#Headers], 0)),\"\")","v":{"v":4,"d":"4.00 kn"}},{"$f":"IFERROR(INDEX(PojedinostiOFakturi[],SMALL(IF(PojedinostiOFakturi[Broj računa]=rngInvoice,ROW(PojedinostiOFakturi[])-ROW(PojedinostiOFakturi[#Headers])), ROW(8:8)), MATCH($F$8, PojedinostiOFakturi[#Headers], 0)),\"\")","v":0},{"v":100,"d":"100.00 kn"}]
[null,{"$f":"IFERROR(INDEX(PojedinostiOFakturi[],SMALL(IF(PojedinostiOFakturi[Broj računa]=rngInvoice,ROW(PojedinostiOFakturi[])-ROW(PojedinostiOFakturi[#Headers])), ROW(9:9)), MATCH($B$8, PojedinostiOFakturi[#Headers], 0)),\"\")","v":"Z4575"},{"$f":"IFERROR(INDEX(PojedinostiOFakturi[],SMALL(IF(PojedinostiOFakturi[Broj računa]=rngInvoice,ROW(PojedinostiOFakturi[])-ROW(PojedinostiOFakturi[#Headers])), ROW(9:9)), MATCH($C$8, PojedinostiOFakturi[#Headers], 0)),\"\")","v":"Račun 3-456-2, podatak 9"},{"$f":"IFERROR(INDEX(PojedinostiOFakturi[],SMALL(IF(PojedinostiOFakturi[Broj računa]=rngInvoice,ROW(PojedinostiOFakturi[])-ROW(PojedinostiOFakturi[#Headers])), ROW(9:9)), MATCH($D$8, PojedinostiOFakturi[#Headers], 0)),\"\")","v":5},{"$f":"IFERROR(INDEX(PojedinostiOFakturi[],SMALL(IF(PojedinostiOFakturi[Broj računa]=rngInvoice,ROW(PojedinostiOFakturi[])-ROW(PojedinostiOFakturi[#Headers])), ROW(9:9)), MATCH($E$8, PojedinostiOFakturi[#Headers], 0)),\"\")","v":{"v":7,"d":"7.00 kn"}},{"$f":"IFERROR(INDEX(PojedinostiOFakturi[],SMALL(IF(PojedinostiOFakturi[Broj računa]=rngInvoice,ROW(PojedinostiOFakturi[])-ROW(PojedinostiOFakturi[#Headers])), ROW(9:9)), MATCH($F$8, PojedinostiOFakturi[#Headers], 0)),\"\")","v":{"v":3,"d":"3.00 kn"}},{"v":32,"d":"32.00 kn"}]
[null,{"$f":"IFERROR(INDEX(PojedinostiOFakturi[],SMALL(IF(PojedinostiOFakturi[Broj računa]=rngInvoice,ROW(PojedinostiOFakturi[])-ROW(PojedinostiOFakturi[#Headers])), ROW(10:10)), MATCH($B$8, PojedinostiOFakturi[#Headers], 0)),\"\")","v":"Z4576"},{"$f":"IFERROR(INDEX(PojedinostiOFakturi[],SMALL(IF(PojedinostiOFakturi[Broj računa]=rngInvoice,ROW(PojedinostiOFakturi[])-ROW(PojedinostiOFakturi[#Headers])), ROW(10:10)), MATCH($C$8, PojedinostiOFakturi[#Headers], 0)),\"\")","v":"Račun 3-456-2, podatak 10"},{"$f":"IFERROR(INDEX(PojedinostiOFakturi[],SMALL(IF(PojedinostiOFakturi[Broj računa]=rngInvoice,ROW(PojedinostiOFakturi[])-ROW(PojedinostiOFakturi[#Headers])), ROW(10:10)), MATCH($D$8, PojedinostiOFakturi[#Headers], 0)),\"\")","v":80},{"$f":"IFERROR(INDEX(PojedinostiOFakturi[],SMALL(IF(PojedinostiOFakturi[Broj računa]=rngInvoice,ROW(PojedinostiOFakturi[])-ROW(PojedinostiOFakturi[#Headers])), ROW(10:10)), MATCH($E$8, PojedinostiOFakturi[#Headers], 0)),\"\")","v":{"v":1,"d":"1.00 kn"}},{"$f":"IFERROR(INDEX(PojedinostiOFakturi[],SMALL(IF(PojedinostiOFakturi[Broj računa]=rngInvoice,ROW(PojedinostiOFakturi[])-ROW(PojedinostiOFakturi[#Headers])), ROW(10:10)), MATCH($F$8, PojedinostiOFakturi[#Headers], 0)),\"\")","v":0},{"v":80,"d":"80.00 kn"}]
[null,{"$f":"IFERROR(INDEX(PojedinostiOFakturi[],SMALL(IF(PojedinostiOFakturi[Broj računa]=rngInvoice,ROW(PojedinostiOFakturi[])-ROW(PojedinostiOFakturi[#Headers])), ROW(11:11)), MATCH($B$8, PojedinostiOFakturi[#Headers], 0)),\"\")","v":"Z4577"},{"$f":"IFERROR(INDEX(PojedinostiOFakturi[],SMALL(IF(PojedinostiOFakturi[Broj računa]=rngInvoice,ROW(PojedinostiOFakturi[])-ROW(PojedinostiOFakturi[#Headers])), ROW(11:11)), MATCH($C$8, PojedinostiOFakturi[#Headers], 0)),\"\")","v":"Račun 3-456-2, podatak 11"},{"$f":"IFERROR(INDEX(PojedinostiOFakturi[],SMALL(IF(PojedinostiOFakturi[Broj računa]=rngInvoice,ROW(PojedinostiOFakturi[])-ROW(PojedinostiOFakturi[#Headers])), ROW(11:11)), MATCH($D$8, PojedinostiOFakturi[#Headers], 0)),\"\")","v":65},{"$f":"IFERROR(INDEX(PojedinostiOFakturi[],SMALL(IF(PojedinostiOFakturi[Broj računa]=rngInvoice,ROW(PojedinostiOFakturi[])-ROW(PojedinostiOFakturi[#Headers])), ROW(11:11)), MATCH($E$8, PojedinostiOFakturi[#Headers], 0)),\"\")","v":{"v":7,"d":"7.00 kn"}},{"$f":"IFERROR(INDEX(PojedinostiOFakturi[],SMALL(IF(PojedinostiOFakturi[Broj računa]=rngInvoice,ROW(PojedinostiOFakturi[])-ROW(PojedinostiOFakturi[#Headers])), ROW(11:11)), MATCH($F$8, PojedinostiOFakturi[#Headers], 0)),\"\")","v":0},{"v":455,"d":"455.00 kn"}]
[null,{"$f":"IFERROR(INDEX(PojedinostiOFakturi[],SMALL(IF(PojedinostiOFakturi[Broj računa]=rngInvoice,ROW(PojedinostiOFakturi[])-ROW(PojedinostiOFakturi[#Headers])), ROW(12:12)), MATCH($B$8, PojedinostiOFakturi[#Headers], 0)),\"\")","v":"Z4578"},{"$f":"IFERROR(INDEX(PojedinostiOFakturi[],SMALL(IF(PojedinostiOFakturi[Broj računa]=rngInvoice,ROW(PojedinostiOFakturi[])-ROW(PojedinostiOFakturi[#Headers])), ROW(12:12)), MATCH($C$8, PojedinostiOFakturi[#Headers], 0)),\"\")","v":"Račun 3-456-2, podatak 12"},{"$f":"IFERROR(INDEX(PojedinostiOFakturi[],SMALL(IF(PojedinostiOFakturi[Broj računa]=rngInvoice,ROW(PojedinostiOFakturi[])-ROW(PojedinostiOFakturi[#Headers])), ROW(12:12)), MATCH($D$8, PojedinostiOFakturi[#Headers], 0)),\"\")","v":44},{"$f":"IFERROR(INDEX(PojedinostiOFakturi[],SMALL(IF(PojedinostiOFakturi[Broj računa]=rngInvoice,ROW(PojedinostiOFakturi[])-ROW(PojedinostiOFakturi[#Headers])), ROW(12:12)), MATCH($E$8, PojedinostiOFakturi[#Headers], 0)),\"\")","v":{"v":1,"d":"1.00 kn"}},{"$f":"IFERROR(INDEX(PojedinostiOFakturi[],SMALL(IF(PojedinostiOFakturi[Broj računa]=rngInvoice,ROW(PojedinostiOFakturi[])-ROW(PojedinostiOFakturi[#Headers])), ROW(12:12)), MATCH($F$8, PojedinostiOFakturi[#Headers], 0)),\"\")","v":0},{"v":44,"d":"44.00 kn"}]
[null,{"$f":"IFERROR(INDEX(PojedinostiOFakturi[],SMALL(IF(PojedinostiOFakturi[Broj računa]=rngInvoice,ROW(PojedinostiOFakturi[])-ROW(PojedinostiOFakturi[#Headers])), ROW(13:13)), MATCH($B$8, PojedinostiOFakturi[#Headers], 0)),\"\")","v":""},{"$f":"IFERROR(INDEX(PojedinostiOFakturi[],SMALL(IF(PojedinostiOFakturi[Broj računa]=rngInvoice,ROW(PojedinostiOFakturi[])-ROW(PojedinostiOFakturi[#Headers])), ROW(13:13)), MATCH($C$8, PojedinostiOFakturi[#Headers], 0)),\"\")","v":""},{"$f":"IFERROR(INDEX(PojedinostiOFakturi[],SMALL(IF(PojedinostiOFakturi[Broj računa]=rngInvoice,ROW(PojedinostiOFakturi[])-ROW(PojedinostiOFakturi[#Headers])), ROW(13:13)), MATCH($D$8, PojedinostiOFakturi[#Headers], 0)),\"\")","v":""},{"$f":"IFERROR(INDEX(PojedinostiOFakturi[],SMALL(IF(PojedinostiOFakturi[Broj računa]=rngInvoice,ROW(PojedinostiOFakturi[])-ROW(PojedinostiOFakturi[#Headers])), ROW(13:13)), MATCH($E$8, PojedinostiOFakturi[#Headers], 0)),\"\")","v":""},{"$f":"IFERROR(INDEX(PojedinostiOFakturi[],SMALL(IF(PojedinostiOFakturi[Broj računa]=rngInvoice,ROW(PojedinostiOFakturi[])-ROW(PojedinostiOFakturi[#Headers])), ROW(13:13)), MATCH($F$8, PojedinostiOFakturi[#Headers], 0)),\"\")","v":""},""]
[null,{"$f":"IFERROR(INDEX(PojedinostiOFakturi[],SMALL(IF(PojedinostiOFakturi[Broj računa]=rngInvoice,ROW(PojedinostiOFakturi[])-ROW(PojedinostiOFakturi[#Headers])), ROW(14:14)), MATCH($B$8, PojedinostiOFakturi[#Headers], 0)),\"\")","v":""},{"$f":"IFERROR(INDEX(PojedinostiOFakturi[],SMALL(IF(PojedinostiOFakturi[Broj računa]=rngInvoice,ROW(PojedinostiOFakturi[])-ROW(PojedinostiOFakturi[#Headers])), ROW(14:14)), MATCH($C$8, PojedinostiOFakturi[#Headers], 0)),\"\")","v":""},{"$f":"IFERROR(INDEX(PojedinostiOFakturi[],SMALL(IF(PojedinostiOFakturi[Broj računa]=rngInvoice,ROW(PojedinostiOFakturi[])-ROW(PojedinostiOFakturi[#Headers])), ROW(14:14)), MATCH($D$8, PojedinostiOFakturi[#Headers], 0)),\"\")","v":""},{"$f":"IFERROR(INDEX(PojedinostiOFakturi[],SMALL(IF(PojedinostiOFakturi[Broj računa]=rngInvoice,ROW(PojedinostiOFakturi[])-ROW(PojedinostiOFakturi[#Headers])), ROW(14:14)), MATCH($E$8, PojedinostiOFakturi[#Headers], 0)),\"\")","v":""},{"$f":"IFERROR(INDEX(PojedinostiOFakturi[],SMALL(IF(PojedinostiOFakturi[Broj računa]=rngInvoice,ROW(PojedinostiOFakturi[])-ROW(PojedinostiOFakturi[#Headers])), ROW(14:14)), MATCH($F$8, PojedinostiOFakturi[#Headers], 0)),\"\")","v":""},""]
[null,{"$f":"IFERROR(INDEX(PojedinostiOFakturi[],SMALL(IF(PojedinostiOFakturi[Broj računa]=rngInvoice,ROW(PojedinostiOFakturi[])-ROW(PojedinostiOFakturi[#Headers])), ROW(15:15)), MATCH($B$8, PojedinostiOFakturi[#Headers], 0)),\"\")","v":""},{"$f":"IFERROR(INDEX(PojedinostiOFakturi[],SMALL(IF(PojedinostiOFakturi[Broj računa]=rngInvoice,ROW(PojedinostiOFakturi[])-ROW(PojedinostiOFakturi[#Headers])), ROW(15:15)), MATCH($C$8, PojedinostiOFakturi[#Headers], 0)),\"\")","v":""},{"$f":"IFERROR(INDEX(PojedinostiOFakturi[],SMALL(IF(PojedinostiOFakturi[Broj računa]=rngInvoice,ROW(PojedinostiOFakturi[])-ROW(PojedinostiOFakturi[#Headers])), ROW(15:15)), MATCH($D$8, PojedinostiOFakturi[#Headers], 0)),\"\")","v":""},{"$f":"IFERROR(INDEX(PojedinostiOFakturi[],SMALL(IF(PojedinostiOFakturi[Broj računa]=rngInvoice,ROW(PojedinostiOFakturi[])-ROW(PojedinostiOFakturi[#Headers])), ROW(15:15)), MATCH($E$8, PojedinostiOFakturi[#Headers], 0)),\"\")","v":""},{"$f":"IFERROR(INDEX(PojedinostiOFakturi[],SMALL(IF(PojedinostiOFakturi[Broj računa]=rngInvoice,ROW(PojedinostiOFakturi[])-ROW(PojedinostiOFakturi[#Headers])), ROW(15:15)), MATCH($F$8, PojedinostiOFakturi[#Headers], 0)),\"\")","v":""},""]
[null,{"$f":"IFERROR(INDEX(PojedinostiOFakturi[],SMALL(IF(PojedinostiOFakturi[Broj računa]=rngInvoice,ROW(PojedinostiOFakturi[])-ROW(PojedinostiOFakturi[#Headers])), ROW(16:16)), MATCH($B$8, PojedinostiOFakturi[#Headers], 0)),\"\")","v":""},{"$f":"IFERROR(INDEX(PojedinostiOFakturi[],SMALL(IF(PojedinostiOFakturi[Broj računa]=rngInvoice,ROW(PojedinostiOFakturi[])-ROW(PojedinostiOFakturi[#Headers])), ROW(16:16)), MATCH($C$8, PojedinostiOFakturi[#Headers], 0)),\"\")","v":""},{"$f":"IFERROR(INDEX(PojedinostiOFakturi[],SMALL(IF(PojedinostiOFakturi[Broj računa]=rngInvoice,ROW(PojedinostiOFakturi[])-ROW(PojedinostiOFakturi[#Headers])), ROW(16:16)), MATCH($D$8, PojedinostiOFakturi[#Headers], 0)),\"\")","v":""},{"$f":"IFERROR(INDEX(PojedinostiOFakturi[],SMALL(IF(PojedinostiOFakturi[Broj računa]=rngInvoice,ROW(PojedinostiOFakturi[])-ROW(PojedinostiOFakturi[#Headers])), ROW(16:16)), MATCH($E$8, PojedinostiOFakturi[#Headers], 0)),\"\")","v":""},{"$f":"IFERROR(INDEX(PojedinostiOFakturi[],SMALL(IF(PojedinostiOFakturi[Broj računa]=rngInvoice,ROW(PojedinostiOFakturi[])-ROW(PojedinostiOFakturi[#Headers])), ROW(16:16)), MATCH($F$8, PojedinostiOFakturi[#Headers], 0)),\"\")","v":""},""]
[null,{"$f":"IFERROR(INDEX(PojedinostiOFakturi[],SMALL(IF(PojedinostiOFakturi[Broj računa]=rngInvoice,ROW(PojedinostiOFakturi[])-ROW(PojedinostiOFakturi[#Headers])), ROW(17:17)), MATCH($B$8, PojedinostiOFakturi[#Headers], 0)),\"\")","v":""},{"$f":"IFERROR(INDEX(PojedinostiOFakturi[],SMALL(IF(PojedinostiOFakturi[Broj računa]=rngInvoice,ROW(PojedinostiOFakturi[])-ROW(PojedinostiOFakturi[#Headers])), ROW(17:17)), MATCH($C$8, PojedinostiOFakturi[#Headers], 0)),\"\")","v":""},{"$f":"IFERROR(INDEX(PojedinostiOFakturi[],SMALL(IF(PojedinostiOFakturi[Broj računa]=rngInvoice,ROW(PojedinostiOFakturi[])-ROW(PojedinostiOFakturi[#Headers])), ROW(17:17)), MATCH($D$8, PojedinostiOFakturi[#Headers], 0)),\"\")","v":""},{"$f":"IFERROR(INDEX(PojedinostiOFakturi[],SMALL(IF(PojedinostiOFakturi[Broj računa]=rngInvoice,ROW(PojedinostiOFakturi[])-ROW(PojedinostiOFakturi[#Headers])), ROW(17:17)), MATCH($E$8, PojedinostiOFakturi[#Headers], 0)),\"\")","v":""},{"$f":"IFERROR(INDEX(PojedinostiOFakturi[],SMALL(IF(PojedinostiOFakturi[Broj računa]=rngInvoice,ROW(PojedinostiOFakturi[])-ROW(PojedinostiOFakturi[#Headers])), ROW(17:17)), MATCH($F$8, PojedinostiOFakturi[#Headers], 0)),\"\")","v":""},""]
[null,{"$f":"IFERROR(INDEX(PojedinostiOFakturi[],SMALL(IF(PojedinostiOFakturi[Broj računa]=rngInvoice,ROW(PojedinostiOFakturi[])-ROW(PojedinostiOFakturi[#Headers])), ROW(18:18)), MATCH($B$8, PojedinostiOFakturi[#Headers], 0)),\"\")","v":""},{"$f":"IFERROR(INDEX(PojedinostiOFakturi[],SMALL(IF(PojedinostiOFakturi[Broj računa]=rngInvoice,ROW(PojedinostiOFakturi[])-ROW(PojedinostiOFakturi[#Headers])), ROW(18:18)), MATCH($C$8, PojedinostiOFakturi[#Headers], 0)),\"\")","v":""},{"$f":"IFERROR(INDEX(PojedinostiOFakturi[],SMALL(IF(PojedinostiOFakturi[Broj računa]=rngInvoice,ROW(PojedinostiOFakturi[])-ROW(PojedinostiOFakturi[#Headers])), ROW(18:18)), MATCH($D$8, PojedinostiOFakturi[#Headers], 0)),\"\")","v":""},{"$f":"IFERROR(INDEX(PojedinostiOFakturi[],SMALL(IF(PojedinostiOFakturi[Broj računa]=rngInvoice,ROW(PojedinostiOFakturi[])-ROW(PojedinostiOFakturi[#Headers])), ROW(18:18)), MATCH($E$8, PojedinostiOFakturi[#Headers], 0)),\"\")","v":""},{"$f":"IFERROR(INDEX(PojedinostiOFakturi[],SMALL(IF(PojedinostiOFakturi[Broj računa]=rngInvoice,ROW(PojedinostiOFakturi[])-ROW(PojedinostiOFakturi[#Headers])), ROW(18:18)), MATCH($F$8, PojedinostiOFakturi[#Headers], 0)),\"\")","v":""},""]
[null,{"$f":"IFERROR(INDEX(PojedinostiOFakturi[],SMALL(IF(PojedinostiOFakturi[Broj računa]=rngInvoice,ROW(PojedinostiOFakturi[])-ROW(PojedinostiOFakturi[#Headers])), ROW(19:19)), MATCH($B$8, PojedinostiOFakturi[#Headers], 0)),\"\")","v":""},{"$f":"IFERROR(INDEX(PojedinostiOFakturi[],SMALL(IF(PojedinostiOFakturi[Broj računa]=rngInvoice,ROW(PojedinostiOFakturi[])-ROW(PojedinostiOFakturi[#Headers])), ROW(19:19)), MATCH($C$8, PojedinostiOFakturi[#Headers], 0)),\"\")","v":""},{"$f":"IFERROR(INDEX(PojedinostiOFakturi[],SMALL(IF(PojedinostiOFakturi[Broj računa]=rngInvoice,ROW(PojedinostiOFakturi[])-ROW(PojedinostiOFakturi[#Headers])), ROW(19:19)), MATCH($D$8, PojedinostiOFakturi[#Headers], 0)),\"\")","v":""},{"$f":"IFERROR(INDEX(PojedinostiOFakturi[],SMALL(IF(PojedinostiOFakturi[Broj računa]=rngInvoice,ROW(PojedinostiOFakturi[])-ROW(PojedinostiOFakturi[#Headers])), ROW(19:19)), MATCH($E$8, PojedinostiOFakturi[#Headers], 0)),\"\")","v":""},{"$f":"IFERROR(INDEX(PojedinostiOFakturi[],SMALL(IF(PojedinostiOFakturi[Broj računa]=rngInvoice,ROW(PojedinostiOFakturi[])-ROW(PojedinostiOFakturi[#Headers])), ROW(19:19)), MATCH($F$8, PojedinostiOFakturi[#Headers], 0)),\"\")","v":""},""]
[null,{"$f":"IFERROR(INDEX(PojedinostiOFakturi[],SMALL(IF(PojedinostiOFakturi[Broj računa]=rngInvoice,ROW(PojedinostiOFakturi[])-ROW(PojedinostiOFakturi[#Headers])), ROW(20:20)), MATCH($B$8, PojedinostiOFakturi[#Headers], 0)),\"\")","v":""},{"$f":"IFERROR(INDEX(PojedinostiOFakturi[],SMALL(IF(PojedinostiOFakturi[Broj računa]=rngInvoice,ROW(PojedinostiOFakturi[])-ROW(PojedinostiOFakturi[#Headers])), ROW(20:20)), MATCH($C$8, PojedinostiOFakturi[#Headers], 0)),\"\")","v":""},{"$f":"IFERROR(INDEX(PojedinostiOFakturi[],SMALL(IF(PojedinostiOFakturi[Broj računa]=rngInvoice,ROW(PojedinostiOFakturi[])-ROW(PojedinostiOFakturi[#Headers])), ROW(20:20)), MATCH($D$8, PojedinostiOFakturi[#Headers], 0)),\"\")","v":""},{"$f":"IFERROR(INDEX(PojedinostiOFakturi[],SMALL(IF(PojedinostiOFakturi[Broj računa]=rngInvoice,ROW(PojedinostiOFakturi[])-ROW(PojedinostiOFakturi[#Headers])), ROW(20:20)), MATCH($E$8, PojedinostiOFakturi[#Headers], 0)),\"\")","v":""},{"$f":"IFERROR(INDEX(PojedinostiOFakturi[],SMALL(IF(PojedinostiOFakturi[Broj računa]=rngInvoice,ROW(PojedinostiOFakturi[])-ROW(PojedinostiOFakturi[#Headers])), ROW(20:20)), MATCH($F$8, PojedinostiOFakturi[#Headers], 0)),\"\")","v":""},""]
[null,{"$f":"IFERROR(INDEX(PojedinostiOFakturi[],SMALL(IF(PojedinostiOFakturi[Broj računa]=rngInvoice,ROW(PojedinostiOFakturi[])-ROW(PojedinostiOFakturi[#Headers])), ROW(21:21)), MATCH($B$8, PojedinostiOFakturi[#Headers], 0)),\"\")","v":""},{"$f":"IFERROR(INDEX(PojedinostiOFakturi[],SMALL(IF(PojedinostiOFakturi[Broj računa]=rngInvoice,ROW(PojedinostiOFakturi[])-ROW(PojedinostiOFakturi[#Headers])), ROW(21:21)), MATCH($C$8, PojedinostiOFakturi[#Headers], 0)),\"\")","v":""},{"$f":"IFERROR(INDEX(PojedinostiOFakturi[],SMALL(IF(PojedinostiOFakturi[Broj računa]=rngInvoice,ROW(PojedinostiOFakturi[])-ROW(PojedinostiOFakturi[#Headers])), ROW(21:21)), MATCH($D$8, PojedinostiOFakturi[#Headers], 0)),\"\")","v":""},{"$f":"IFERROR(INDEX(PojedinostiOFakturi[],SMALL(IF(PojedinostiOFakturi[Broj računa]=rngInvoice,ROW(PojedinostiOFakturi[])-ROW(PojedinostiOFakturi[#Headers])), ROW(21:21)), MATCH($E$8, PojedinostiOFakturi[#Headers], 0)),\"\")","v":""},{"$f":"IFERROR(INDEX(PojedinostiOFakturi[],SMALL(IF(PojedinostiOFakturi[Broj računa]=rngInvoice,ROW(PojedinostiOFakturi[])-ROW(PojedinostiOFakturi[#Headers])), ROW(21:21)), MATCH($F$8, PojedinostiOFakturi[#Headers], 0)),\"\")","v":""},""]
[null,{"$f":"IFERROR(INDEX(PojedinostiOFakturi[],SMALL(IF(PojedinostiOFakturi[Broj računa]=rngInvoice,ROW(PojedinostiOFakturi[])-ROW(PojedinostiOFakturi[#Headers])), ROW(22:22)), MATCH($B$8, PojedinostiOFakturi[#Headers], 0)),\"\")","v":""},{"$f":"IFERROR(INDEX(PojedinostiOFakturi[],SMALL(IF(PojedinostiOFakturi[Broj računa]=rngInvoice,ROW(PojedinostiOFakturi[])-ROW(PojedinostiOFakturi[#Headers])), ROW(22:22)), MATCH($C$8, PojedinostiOFakturi[#Headers], 0)),\"\")","v":""},{"$f":"IFERROR(INDEX(PojedinostiOFakturi[],SMALL(IF(PojedinostiOFakturi[Broj računa]=rngInvoice,ROW(PojedinostiOFakturi[])-ROW(PojedinostiOFakturi[#Headers])), ROW(22:22)), MATCH($D$8, PojedinostiOFakturi[#Headers], 0)),\"\")","v":""},{"$f":"IFERROR(INDEX(PojedinostiOFakturi[],SMALL(IF(PojedinostiOFakturi[Broj računa]=rngInvoice,ROW(PojedinostiOFakturi[])-ROW(PojedinostiOFakturi[#Headers])), ROW(22:22)), MATCH($E$8, PojedinostiOFakturi[#Headers], 0)),\"\")","v":""},{"$f":"IFERROR(INDEX(PojedinostiOFakturi[],SMALL(IF(PojedinostiOFakturi[Broj računa]=rngInvoice,ROW(PojedinostiOFakturi[])-ROW(PojedinostiOFakturi[#Headers])), ROW(22:22)), MATCH($F$8, PojedinostiOFakturi[#Headers], 0)),\"\")","v":""},""]
[null,{"$f":"IFERROR(INDEX(PojedinostiOFakturi[],SMALL(IF(PojedinostiOFakturi[Broj računa]=rngInvoice,ROW(PojedinostiOFakturi[])-ROW(PojedinostiOFakturi[#Headers])), ROW(23:23)), MATCH($B$8, PojedinostiOFakturi[#Headers], 0)),\"\")","v":""},{"$f":"IFERROR(INDEX(PojedinostiOFakturi[],SMALL(IF(PojedinostiOFakturi[Broj računa]=rngInvoice,ROW(PojedinostiOFakturi[])-ROW(PojedinostiOFakturi[#Headers])), ROW(23:23)), MATCH($C$8, PojedinostiOFakturi[#Headers], 0)),\"\")","v":""},{"$f":"IFERROR(INDEX(PojedinostiOFakturi[],SMALL(IF(PojedinostiOFakturi[Broj računa]=rngInvoice,ROW(PojedinostiOFakturi[])-ROW(PojedinostiOFakturi[#Headers])), ROW(23:23)), MATCH($D$8, PojedinostiOFakturi[#Headers], 0)),\"\")","v":""},{"$f":"IFERROR(INDEX(PojedinostiOFakturi[],SMALL(IF(PojedinostiOFakturi[Broj računa]=rngInvoice,ROW(PojedinostiOFakturi[])-ROW(PojedinostiOFakturi[#Headers])), ROW(23:23)), MATCH($E$8, PojedinostiOFakturi[#Headers], 0)),\"\")","v":""},{"$f":"IFERROR(INDEX(PojedinostiOFakturi[],SMALL(IF(PojedinostiOFakturi[Broj računa]=rngInvoice,ROW(PojedinostiOFakturi[])-ROW(PojedinostiOFakturi[#Headers])), ROW(23:23)), MATCH($F$8, PojedinostiOFakturi[#Headers], 0)),\"\")","v":""},""]
[null,{"$f":"IFERROR(INDEX(PojedinostiOFakturi[],SMALL(IF(PojedinostiOFakturi[Broj računa]=rngInvoice,ROW(PojedinostiOFakturi[])-ROW(PojedinostiOFakturi[#Headers])), ROW(24:24)), MATCH($B$8, PojedinostiOFakturi[#Headers], 0)),\"\")","v":""},{"$f":"IFERROR(INDEX(PojedinostiOFakturi[],SMALL(IF(PojedinostiOFakturi[Broj računa]=rngInvoice,ROW(PojedinostiOFakturi[])-ROW(PojedinostiOFakturi[#Headers])), ROW(24:24)), MATCH($C$8, PojedinostiOFakturi[#Headers], 0)),\"\")","v":""},{"$f":"IFERROR(INDEX(PojedinostiOFakturi[],SMALL(IF(PojedinostiOFakturi[Broj računa]=rngInvoice,ROW(PojedinostiOFakturi[])-ROW(PojedinostiOFakturi[#Headers])), ROW(24:24)), MATCH($D$8, PojedinostiOFakturi[#Headers], 0)),\"\")","v":""},{"$f":"IFERROR(INDEX(PojedinostiOFakturi[],SMALL(IF(PojedinostiOFakturi[Broj računa]=rngInvoice,ROW(PojedinostiOFakturi[])-ROW(PojedinostiOFakturi[#Headers])), ROW(24:24)), MATCH($E$8, PojedinostiOFakturi[#Headers], 0)),\"\")","v":""},{"$f":"IFERROR(INDEX(PojedinostiOFakturi[],SMALL(IF(PojedinostiOFakturi[Broj računa]=rngInvoice,ROW(PojedinostiOFakturi[])-ROW(PojedinostiOFakturi[#Headers])), ROW(24:24)), MATCH($F$8, PojedinostiOFakturi[#Headers], 0)),\"\")","v":""},""]
[null,{"$f":"IFERROR(INDEX(PojedinostiOFakturi[],SMALL(IF(PojedinostiOFakturi[Broj računa]=rngInvoice,ROW(PojedinostiOFakturi[])-ROW(PojedinostiOFakturi[#Headers])), ROW(25:25)), MATCH($B$8, PojedinostiOFakturi[#Headers], 0)),\"\")","v":""},{"$f":"IFERROR(INDEX(PojedinostiOFakturi[],SMALL(IF(PojedinostiOFakturi[Broj računa]=rngInvoice,ROW(PojedinostiOFakturi[])-ROW(PojedinostiOFakturi[#Headers])), ROW(25:25)), MATCH($C$8, PojedinostiOFakturi[#Headers], 0)),\"\")","v":""},{"$f":"IFERROR(INDEX(PojedinostiOFakturi[],SMALL(IF(PojedinostiOFakturi[Broj računa]=rngInvoice,ROW(PojedinostiOFakturi[])-ROW(PojedinostiOFakturi[#Headers])), ROW(25:25)), MATCH($D$8, PojedinostiOFakturi[#Headers], 0)),\"\")","v":""},{"$f":"IFERROR(INDEX(PojedinostiOFakturi[],SMALL(IF(PojedinostiOFakturi[Broj računa]=rngInvoice,ROW(PojedinostiOFakturi[])-ROW(PojedinostiOFakturi[#Headers])), ROW(25:25)), MATCH($E$8, PojedinostiOFakturi[#Headers], 0)),\"\")","v":""},{"$f":"IFERROR(INDEX(PojedinostiOFakturi[],SMALL(IF(PojedinostiOFakturi[Broj računa]=rngInvoice,ROW(PojedinostiOFakturi[])-ROW(PojedinostiOFakturi[#Headers])), ROW(25:25)), MATCH($F$8, PojedinostiOFakturi[#Headers], 0)),\"\")","v":""},""]
[{"$nulls":5},"Podzbroj fakture",{"$f":"SUM(FakturaProjekta[Cijena])","v":{"v":2014,"d":"2,014.00 kn"}}]
[{"$nulls":5},"Porezna stopa",{"$f":"VLOOKUP(rngInvoice,FaktureGlavno[],5)","v":{"v":0.0875,"d":"8.75%"}}]
[{"$nulls":5},"Porez na promet",{"$f":"G34*G35","v":{"v":176.225,"d":"176.23 kn"}}]
[{"$nulls":5},"Ostalo",{"$f":"VLOOKUP(rngInvoice,FaktureGlavno[],6)","v":0}]
[null,{"$f":"\"Sva plaćanja idu na račun tvrtke \"&NazivTvrtke&\".\"","v":"Sva plaćanja idu na račun tvrtke Naziv tvrtke ."},{"$nulls":3},"Primljen predujam",{"$f":"VLOOKUP(rngInvoice,FaktureGlavno[],7)","v":0}]
[null,"Ukupan iznos dospijeva za sljedeći broj dana: <#>. Za kašnjenje s plaćanjem zaračunavaju se zatezne kamate u iznosu <#> % mjesečno.",{"$nulls":3},"Zbroj",{"$f":"(G34+G36+G37)-G38","v":{"v":2190.225,"d":"2,190.23 kn"}}]

{"sheet":"Kupci","index":1,"n_rows":6,"n_cols":12,"rows_kept":6}
[]
[null,null,"Kupci"]
[null,"Traženje","Broj tvrtke","Naziv tvrtke","Ime i prezime osobe za kontakt","Adresa","Grad","Županija","Poštanski broj","Telefon","Adresa e-pošte","Faks"]
[null,{"$f":"C4& \" - \"&D4","v":"1 - Tailspin Toys "},1,"Tailspin Toys ","Robert Anić","Ulica trešanja 34","Gospić","Ličko-senjska","123456","432-555-0178","netko@example.com","432-555-0187"]
[null,"2 - Contoso, Ltd",2,"Contoso, Ltd","Edi Kolar","Aleja hrastova 56","Karlovac","Karlovačka","098765","432-555-0189","netko@example.com","432-555-0123"]
[null,"Ukupni zbrojevi",{"$f":"\"Ukupno korisnika: \"&SUBTOTAL(103,PopisKupaca[Broj tvrtke])","v":"Ukupno korisnika: 2"}]

{"sheet":"Fakture – Glavno","index":2,"n_rows":6,"n_cols":11,"rows_kept":6}
[]
[null,"Računi"]
[null,"Broj računa","Tvrtka","Datum izdavanja računa","Opis projekta","Porezna stopa","Ostalo","Predujam","Ukupno za stavku","Ukupan iznos računa","Napomene"]
[null,"3-456-1","1 - Tailspin Toys ",{"$f":"TODAY()","v":{"v":43675,"d":"4367500.00%"}},"Projekt 1",{"v":0.0875,"d":"8.75%"},{"v":100,"d":"100.00 kn"},{"v":100,"d":"100.00 kn"},{"$f":"SUMIF(PojedinostiOFakturi[Broj računa],\"=\"&FaktureGlavno[[#This Row],[Broj računa]],PojedinostiOFakturi[Zbroj])","v":{"v":5200,"d":"5,200.00 kn"}},{"$f":"(FaktureGlavno[[#This Row],[Ukupno za stavku]]*(1+FaktureGlavno[[#This Row],[Porezna stopa]]))+FaktureGlavno[[#This Row],[Ostalo]]-FaktureGlavno[[#This Row],[Predujam]]","v":{"v":5654.999999999999,"d":"5,655.00 kn"}}]
[null,"3-456-2","1 - Tailspin Toys ",{"$f":"TODAY()+10","v":{"v":43685,"d":"4368500.00%"}},"Projekt 2",{"v":0.0875,"d":"8.75%"},null,null,{"$f":"SUMIF(PojedinostiOFakturi[Broj računa],\"=\"&FaktureGlavno[[#This Row],[Broj računa]],PojedinostiOFakturi[Zbroj])","v":{"v":2014,"d":"2,014.00 kn"}},{"$f":"(FaktureGlavno[[#This Row],[Ukupno za stavku]]*(1+FaktureGlavno[[#This Row],[Porezna stopa]]))+FaktureGlavno[[#This Row],[Ostalo]]-FaktureGlavno[[#This Row],[Predujam]]","v":{"v":2190.225,"d":"2,190.23 kn"}}]
[null,"Ukupni zbrojevi",{"$f":"\"Ukupno faktura: \"&SUBTOTAL(103,FaktureGlavno[Broj računa])","v":"Ukupno faktura: 2"},{"$nulls":3},{"$f":"SUBTOTAL(109,FaktureGlavno[Ostalo])","v":{"v":100,"d":"100.00 kn"}},{"$f":"SUBTOTAL(109,FaktureGlavno[Predujam])","v":{"v":100,"d":"100.00 kn"}},{"$f":"SUBTOTAL(109,FaktureGlavno[Ukupno za stavku])","v":{"v":7214,"d":"7,214.00 kn"}},{"$f":"SUBTOTAL(109,FaktureGlavno[Ukupan iznos računa])","v":{"v":7845.2249999999985,"d":"7,845.23 kn"}}]

{"sheet":"Pojedinosti o fakturi","index":3,"n_rows":40,"n_cols":8,"rows_kept":40}
[]
[null,"Pojedinosti računa"]
[null,"Opis","Broj računa","Broj stavke","Količina","Jedinična cijena","Popust","Zbroj"]
[null,"Račun 3-456-1, podatak 1","3-456-1",1,1,{"v":1,"d":"1.00 kn"},{"v":1,"d":"1.00 kn"},{"$f":"(PojedinostiOFakturi[[#This Row],[Količina]]*PojedinostiOFakturi[[#This Row],[Jedinična cijena]])-PojedinostiOFakturi[[#This Row],[Popust]]","v":{"v":0,"d":"0.00 kn"}}]
[null,"Račun 3-456-1, podatak 2","3-456-1",2,2,{"v":2,"d":"2.00 kn"},{"v":2,"d":"2.00 kn"},{"$f":"(PojedinostiOFakturi[[#This Row],[Količina]]*PojedinostiOFakturi[[#This Row],[Jedinična cijena]])-PojedinostiOFakturi[[#This Row],[Popust]]","v":{"v":2,"d":"2.00 kn"}}]
[null,"Račun 3-456-1, podatak 3","3-456-1",3,3,{"v":3,"d":"3.00 kn"},{"v":3,"d":"3.00 kn"},{"$f":"(PojedinostiOFakturi[[#This Row],[Količina]]*PojedinostiOFakturi[[#This Row],[Jedinična cijena]])-PojedinostiOFakturi[[#This Row],[Popust]]","v":{"v":6,"d":"6.00 kn"}}]
[null,"Račun 3-456-1, podatak 4","3-456-1",4,4,{"v":4,"d":"4.00 kn"},{"v":4,"d":"4.00 kn"},{"$f":"(PojedinostiOFakturi[[#This Row],[Količina]]*PojedinostiOFakturi[[#This Row],[Jedinična cijena]])-PojedinostiOFakturi[[#This Row],[Popust]]","v":{"v":12,"d":"12.00 kn"}}]
[null,"Račun 3-456-1, podatak 5","3-456-1",5,5,{"v":5,"d":"5.00 kn"},{"v":5,"d":"5.00 kn"},{"$f":"(PojedinostiOFakturi[[#This Row],[Količina]]*PojedinostiOFakturi[[#This Row],[Jedinična cijena]])-PojedinostiOFakturi[[#This Row],[Popust]]","v":{"v":20,"d":"20.00 kn"}}]
[null,"Račun 3-456-1, podatak 6","3-456-1",6,6,{"v":6,"d":"6.00 kn"},{"v":6,"d":"6.00 kn"},{"$f":"(PojedinostiOFakturi[[#This Row],[Količina]]*PojedinostiOFakturi[[#This Row],[Jedinična cijena]])-PojedinostiOFakturi[[#This Row],[Popust]]","v":{"v":30,"d":"30.00 kn"}}]
[null,"Račun 3-456-1, podatak 7","3-456-1",7,7,{"v":7,"d":"7.00 kn"},{"v":7,"d":"7.00 kn"},{"$f":"(PojedinostiOFakturi[[#This Row],[Količina]]*PojedinostiOFakturi[[#This Row],[Jedinična cijena]])-PojedinostiOFakturi[[#This Row],[Popust]]","v":{"v":42,"d":"42.00 kn"}}]
[null,"Račun 3-456-1, podatak 8","3-456-1",8,8,{"v":8,"d":"8.00 kn"},{"v":8,"d":"8.00 kn"},{"$f":"(PojedinostiOFakturi[[#This Row],[Količina]]*PojedinostiOFakturi[[#This Row],[Jedinična cijena]])-PojedinostiOFakturi[[#This Row],[Popust]]","v":{"v":56,"d":"56.00 kn"}}]
[null,"Račun 3-456-1, podatak 9","3-456-1",9,9,{"v":9,"d":"9.00 kn"},{"v":9,"d":"9.00 kn"},{"$f":"(PojedinostiOFakturi[[#This Row],[Količina]]*PojedinostiOFakturi[[#This Row],[Jedinična cijena]])-PojedinostiOFakturi[[#This Row],[Popust]]","v":{"v":72,"d":"72.00 kn"}}]
[null,"Račun 3-456-1, podatak 10","3-456-1",10,10,{"v":10,"d":"10.00 kn"},{"v":10,"d":"10.00 kn"},{"$f":"(PojedinostiOFakturi[[#This Row],[Količina]]*PojedinostiOFakturi[[#This Row],[Jedinična cijena]])-PojedinostiOFakturi[[#This Row],[Popust]]","v":{"v":90,"d":"90.00 kn"}}]
[null,"Račun 3-456-1, podatak 11","3-456-1",11,11,{"v":11,"d":"11.00 kn"},{"v":11,"d":"11.00 kn"},{"$f":"(PojedinostiOFakturi[[#This Row],[Količina]]*PojedinostiOFakturi[[#This Row],[Jedinična cijena]])-PojedinostiOFakturi[[#This Row],[Popust]]","v":{"v":110,"d":"110.00 kn"}}]
[null,"Račun 3-456-1, podatak 12","3-456-1",12,12,{"v":12,"d":"12.00 kn"},{"v":12,"d":"12.00 kn"},{"$f":"(PojedinostiOFakturi[[#This Row],[Količina]]*PojedinostiOFakturi[[#This Row],[Jedinična cijena]])-PojedinostiOFakturi[[#This Row],[Popust]]","v":{"v":132,"d":"132.00 kn"}}]
[null,"Račun 3-456-1, podatak 13","3-456-1",13,13,{"v":13,"d":"13.00 kn"},{"v":13,"d":"13.00 kn"},{"$f":"(PojedinostiOFakturi[[#This Row],[Količina]]*PojedinostiOFakturi[[#This Row],[Jedinična cijena]])-PojedinostiOFakturi[[#This Row],[Popust]]","v":{"v":156,"d":"156.00 kn"}}]
[null,"Račun 3-456-1, podatak 14","3-456-1",14,14,{"v":14,"d":"14.00 kn"},{"v":14,"d":"14.00 kn"},{"$f":"(PojedinostiOFakturi[[#This Row],[Količina]]*PojedinostiOFakturi[[#This Row],[Jedinična cijena]])-PojedinostiOFakturi[[#This Row],[Popust]]","v":{"v":182,"d":"182.00 kn"}}]
[null,"Račun 3-456-1, podatak 15","3-456-1",15,15,{"v":15,"d":"15.00 kn"},{"v":15,"d":"15.00 kn"},{"$f":"(PojedinostiOFakturi[[#This Row],[Količina]]*PojedinostiOFakturi[[#This Row],[Jedinična cijena]])-PojedinostiOFakturi[[#This Row],[Popust]]","v":{"v":210,"d":"210.00 kn"}}]
[null,"Račun 3-456-1, podatak 16","3-456-1",16,16,{"v":16,"d":"16.00 kn"},{"v":16,"d":"16.00 kn"},{"$f":"(PojedinostiOFakturi[[#This Row],[Količina]]*PojedinostiOFakturi[[#This Row],[Jedinična cijena]])-PojedinostiOFakturi[[#This Row],[Popust]]","v":{"v":240,"d":"240.00 kn"}}]
[null,"Račun 3-456-1, podatak 17","3-456-1",17,17,{"v":17,"d":"17.00 kn"},{"v":17,"d":"17.00 kn"},{"$f":"(PojedinostiOFakturi[[#This Row],[Količina]]*PojedinostiOFakturi[[#This Row],[Jedinična cijena]])-PojedinostiOFakturi[[#This Row],[Popust]]","v":{"v":272,"d":"272.00 kn"}}]
[null,"Račun 3-456-1, podatak 18","3-456-1",18,18,{"v":18,"d":"18.00 kn"},{"v":18,"d":"18.00 kn"},{"$f":"(PojedinostiOFakturi[[#This Row],[Količina]]*PojedinostiOFakturi[[#This Row],[Jedinična cijena]])-PojedinostiOFakturi[[#This Row],[Popust]]","v":{"v":306,"d":"306.00 kn"}}]
[null,"Račun 3-456-1, podatak 19","3-456-1",19,19,{"v":19,"d":"19.00 kn"},{"v":19,"d":"19.00 kn"},{"$f":"(PojedinostiOFakturi[[#This Row],[Količina]]*PojedinostiOFakturi[[#This Row],[Jedinična cijena]])-PojedinostiOFakturi[[#This Row],[Popust]]","v":{"v":342,"d":"342.00 kn"}}]
[null,"Račun 3-456-1, podatak 20","3-456-1",20,20,{"v":20,"d":"20.00 kn"},{"v":20,"d":"20.00 kn"},{"$f":"(PojedinostiOFakturi[[#This Row],[Količina]]*PojedinostiOFakturi[[#This Row],[Jedinična cijena]])-PojedinostiOFakturi[[#This Row],[Popust]]","v":{"v":380,"d":"380.00 kn"}}]
[null,"Račun 3-456-1, podatak 21","3-456-1",21,21,{"v":21,"d":"21.00 kn"},{"v":21,"d":"21.00 kn"},{"$f":"(PojedinostiOFakturi[[#This Row],[Količina]]*PojedinostiOFakturi[[#This Row],[Jedinična cijena]])-PojedinostiOFakturi[[#This Row],[Popust]]","v":{"v":420,"d":"420.00 kn"}}]
[null,"Račun 3-456-1, podatak 22","3-456-1",22,22,{"v":22,"d":"22.00 kn"},{"v":22,"d":"22.00 kn"},{"$f":"(PojedinostiOFakturi[[#This Row],[Količina]]*PojedinostiOFakturi[[#This Row],[Jedinična cijena]])-PojedinostiOFakturi[[#This Row],[Popust]]","v":{"v":462,"d":"462.00 kn"}}]
[null,"Račun 3-456-1, podatak 23","3-456-1",23,23,{"v":23,"d":"23.00 kn"},{"v":23,"d":"23.00 kn"},{"$f":"(PojedinostiOFakturi[[#This Row],[Količina]]*PojedinostiOFakturi[[#This Row],[Jedinična cijena]])-PojedinostiOFakturi[[#This Row],[Popust]]","v":{"v":506,"d":"506.00 kn"}}]
[null,"Račun 3-456-1, podatak 24","3-456-1",24,24,{"v":24,"d":"24.00 kn"},{"v":24,"d":"24.00 kn"},{"$f":"(PojedinostiOFakturi[[#This Row],[Količina]]*PojedinostiOFakturi[[#This Row],[Jedinična cijena]])-PojedinostiOFakturi[[#This Row],[Popust]]","v":{"v":552,"d":"552.00 kn"}}]
[null,"Račun 3-456-1, podatak 25","3-456-1",25,25,{"v":25,"d":"25.00 kn"},{"v":25,"d":"25.00 kn"},{"$f":"(PojedinostiOFakturi[[#This Row],[Količina]]*PojedinostiOFakturi[[#This Row],[Jedinična cijena]])-PojedinostiOFakturi[[#This Row],[Popust]]","v":{"v":600,"d":"600.00 kn"}}]
[null,"Račun 3-456-2,podatak 1","3-456-2","Z4567",39,{"v":5,"d":"5.00 kn"},null,{"$f":"(PojedinostiOFakturi[[#This Row],[Količina]]*PojedinostiOFakturi[[#This Row],[Jedinična cijena]])-PojedinostiOFakturi[[#This Row],[Popust]]","v":{"v":195,"d":"195.00 kn"}}]
[null,"Račun 3-456-2, podatak 2","3-456-2","Z4568",40,{"v":4,"d":"4.00 kn"},{"v":5,"d":"5.00 kn"},{"$f":"(PojedinostiOFakturi[[#This Row],[Količina]]*PojedinostiOFakturi[[#This Row],[Jedinična cijena]])-PojedinostiOFakturi[[#This Row],[Popust]]","v":{"v":155,"d":"155.00 kn"}}]
[null,"Račun 3-456-2, podatak 3","3-456-2","Z4569",30,{"v":6,"d":"6.00 kn"},{"v":7,"d":"7.00 kn"},{"$f":"(PojedinostiOFakturi[[#This Row],[Količina]]*PojedinostiOFakturi[[#This Row],[Jedinična cijena]])-PojedinostiOFakturi[[#This Row],[Popust]]","v":{"v":173,"d":"173.00 kn"}}]
[null,"Račun 3-456-2, podatak 4","3-456-2","Z4570",40,{"v":7,"d":"7.00 kn"},null,{"$f":"(PojedinostiOFakturi[[#This Row],[Količina]]*PojedinostiOFakturi[[#This Row],[Jedinična cijena]])-PojedinostiOFakturi[[#This Row],[Popust]]","v":{"v":280,"d":"280.00 kn"}}]
[null,"Račun 3-456-2, podatak 5","3-456-2","Z4571",10,{"v":4,"d":"4.00 kn"},null,{"$f":"(PojedinostiOFakturi[[#This Row],[Količina]]*PojedinostiOFakturi[[#This Row],[Jedinična cijena]])-PojedinostiOFakturi[[#This Row],[Popust]]","v":{"v":40,"d":"40.00 kn"}}]
[null,"Račun 3-456-2,podatak 6","3-456-2","Z4572",5,{"v":8,"d":"8.00 kn"},null,{"$f":"(PojedinostiOFakturi[[#This Row],[Količina]]*PojedinostiOFakturi[[#This Row],[Jedinična cijena]])-PojedinostiOFakturi[[#This Row],[Popust]]","v":{"v":40,"d":"40.00 kn"}}]
[null,"Račun 3-456-2,podatak 7","3-456-2","Z4573",70,{"v":6,"d":"6.00 kn"},null,{"$f":"(PojedinostiOFakturi[[#This Row],[Količina]]*PojedinostiOFakturi[[#This Row],[Jedinična cijena]])-PojedinostiOFakturi[[#This Row],[Popust]]","v":{"v":420,"d":"420.00 kn"}}]
[null,"Račun 3-456-2, podatak 8","3-456-2","Z4574",25,{"v":4,"d":"4.00 kn"},null,{"$f":"(PojedinostiOFakturi[[#This Row],[Količina]]*PojedinostiOFakturi[[#This Row],[Jedinična cijena]])-PojedinostiOFakturi[[#This Row],[Popust]]","v":{"v":100,"d":"100.00 kn"}}]
[null,"Račun 3-456-2, podatak 9","3-456-2","Z4575",5,{"v":7,"d":"7.00 kn"},{"v":3,"d":"3.00 kn"},{"$f":"(PojedinostiOFakturi[[#This Row],[Količina]]*PojedinostiOFakturi[[#This Row],[Jedinična cijena]])-PojedinostiOFakturi[[#This Row],[Popust]]","v":{"v":32,"d":"32.00 kn"}}]
[null,"Račun 3-456-2, podatak 10","3-456-2","Z4576",80,{"v":1,"d":"1.00 kn"},null,{"$f":"(PojedinostiOFakturi[[#This Row],[Količina]]*PojedinostiOFakturi[[#This Row],[Jedinična cijena]])-PojedinostiOFakturi[[#This Row],[Popust]]","v":{"v":80,"d":"80.00 kn"}}]
[null,"Račun 3-456-2, podatak 11","3-456-2","Z4577",65,{"v":7,"d":"7.00 kn"},null,{"$f":"(PojedinostiOFakturi[[#This Row],[Količina]]*PojedinostiOFakturi[[#This Row],[Jedinična cijena]])-PojedinostiOFakturi[[#This Row],[Popust]]","v":{"v":455,"d":"455.00 kn"}}]
[null,"Račun 3-456-2, podatak 12","3-456-2","Z4578",44,{"v":1,"d":"1.00 kn"},null,{"$f":"(PojedinostiOFakturi[[#This Row],[Količina]]*PojedinostiOFakturi[[#This Row],[Jedinična cijena]])-PojedinostiOFakturi[[#This Row],[Popust]]","v":{"v":44,"d":"44.00 kn"}}]

{"sheet":"O tablici za praćenje fakture","index":4,"n_rows":40,"n_cols":3,"rows_kept":40,"merged":[[3,1,3,7],[4,1,4,7],[5,1,5,7],[6,1,6,7],[7,2,7,7],[8,2,8,7],[9,2,9,7],[10,2,10,7],[11,2,11,7],[12,1,12,7],[13,2,13,3],[14,2,14,7],[15,1,15,7],[16,2,16,7],[17,2,17,7],[18,2,18,7],[19,2,19,7],[20,2,20,7],[21,2,21,7],[22,1,22,7],[23,1,23,7],[24,2,24,7],[25,2,25,7],[26,2,26,7],[27,2,27,7],[28,1,28,7],[29,1,29,7],[30,2,30,7],[31,2,31,7],[32,2,32,7],[33,2,33,7],[34,2,34,7],[36,2,36,7],[37,2,37,7],[38,2,38,7],[39,2,39,7]]}
[null,"O ovoj tablici za praćenje računa"]
[]
[]
[null,"Tablica za praćenje računa osmišljena je za održavanje povijesti kupaca, računa i pojedinosti računa da biste mogli pohraniti veći broj računa bez stvaranja većeg broja datoteka. Pomoću tablice za praćenje računa možete i analizirati prethodno zaračunate podatke. Možete, primjerice, pogledati sve račune za klijenta ili određeni projekt, odnosno pogledati sve račune za prethodni mjesec, prošlu godinu i još mnogo toga."]
[null,"Prije nego što počnete, pogledajte priložene ogledne podatke. Na listu Račun odaberite ćeliju s desne strane broja računa (ćelija L8) i prikazat će se padajući popis. Odaberite strelicu padajućeg popisa, a zatim ogledni račun. Obratite pozornost na to kako se svi podaci o računu automatski mijenjaju da bi odražavali odabrani račun. Sada pogledajte listove Klijenti, Računi – glavni i Pojedinosti računa. Svaki od tih listova sadrži informacije za račun, a sve promjene koje unesete ažurirat će se automatski. "]
[null,"Prvi koraci"]
[null,"Pomoću sljedećih koraka izmijenite list Račun da bi prikazivao informacije o vašoj tvrtki :"]
[null,"1.","Pomaknite se do lista Račun , a zatim na kartici Pregled u grupi Zaštita odaberite Ukloni zaštitu lista. "]
[null,null,"Napomena: list Račun zaštićen je da bi se izbjegle nehotične promjene jer se, kao što je već spomenuto, većina podataka na tom listu povlači sa svih ostalih listova radne knjige. "]
[null,"2.","Prilagodite zaglavlje računa upisivanjem naziva tvrtke, adrese, grada, poštanskog broja, adrese e-pošte, web-mjesta i tako dalje. Na dnu računa (u retku 43) izmijenite upute za plaćanje. "]
[null,null,"Važno! Ne mijenjajte obračunske podatke ili podatke o računu. Sve te ćelije sadrže formule koje će automatski ažurirati račun, kao što je navedeno u odjeljku O tablici za praćenje računa.  "]
[null,"3.","(Neobavezno) Promijenite boje u cijeloj radnoj knjizi: na kartici Raspored stranice u grupi Teme odaberite Boje te iz galerije boja odaberite neki drugi tematski skup boja. "]
[null,"Savjet: stvorite prilagođenu boju teme koja će se podudarati s vizualnim identitetom tvrtke! Da biste to učinili, na kartici Raspored stranice u grupi Teme odaberite Boje, a zatim Prilagodi boje. Dodatne informacije o stvaranju prilagođenog skupa boja potražite u ovoj temi pomoći: "]
[null,null,"Prilagodite temu dokumenta."]
[null,"4.","Kada unesete željene promjene, vratite se na list Račun te na kartici Pregled u grupi Promjene odaberite Zaštiti list, a zatim U redu. Kada je list Račun zaštićen, jedina ćelija koju možete odabrati jest ćelija s padajućim popisom za broj računa."]
[null,"Stvaranje računa"]
[null,"1.","Na listu Klijenti unesite podatke o klijentu, kao što su naziv i adresa tvrtke. Imajte na umu da je broj tvrtke važna vrijednost jer predstavlja jedinstven identifikator svake tvrtke, koji se koristi u cijeloj tablici za praćenje računa. Imajte na umu i da tvrtku morate dodati samo jedanput. Za buduće račune istoj tvrtki taj korak možete preskočiti. "]
[null,null,"Napomena: ako dodijelite isti broj većem broju tvrtki ili više puta unesete isti naziv tvrtke, stavke će poprimiti crvenu boju da bi vas upozorile na duplikaciju. "]
[null,"2.","Na listu Računi – glavni unesite primarne podatke o računu, kao što su njegov broj, datum i opis projekta. Poput broja tvrtke, i broj računa važna je vrijednost jer predstavlja jedinstven identifikator svakog računa te se koristi u cijeloj tablici za praćenje računa. Još jedan važan unos jest Tvrtka. Kada s padajućeg popisa odaberete tvrtku, ta se tvrtka povezuje s pripadnim računom. Potom će se, kada odaberete broj računa na listu Račun, informacije o toj tvrtki, kao što su njezin naziv i adresa, automatski popuniti na računu."]
[null,null,"Napomena: ako dodijelite isti broj većem broju računa, stavke će poprimiti crvenu boju da bi vas upozorile na duplikaciju. "]
[null,"3.","Na listu Pojedinosti računa unesite detalje računa, npr. opis i broj stavke, količinu i jediničnu cijenu. Radi lakšeg unosa podataka na padajućem popisu Broj računa prikazuje se popis računa koje ste upisali na listu Računi – glavni. Slično broju tvrtke u prethodnom koraku, broj računa povezuje tu stavku detalja s određenim računom. Kada na listu Računi s padajućeg popisa Broj računa odaberete broj računa, prikazat će se povezane stavke detalja tog računa."]
[null,null,"Napomena: ograničeni ste na 25 stavki detalja po računu. Ako dodate više od 25 stavki, sve pripadne stavke poprimit će crvenu boju da bi vas upozorile na to ograničenje. Ako na računu imate više od 25 stavki, morat ćete stvoriti drugi račun. "]
[null,"Dodavanje klijenata, računa i pojedinosti računa"]
[null,"Podaci o klijentima, računima i pojedinostima računa spremljeni su u tablicama programa Excel. Kada dodate novi redak u tablicu, on će se automatski oblikovati, a svi će se izračuni kopirati. Da biste dodali nove retke tablice, učinite nešto od sljedećeg:"]
[null,"● ","Ako tablica ne sadrži redak Ukupno, počnite pisati ispod tablice i ona će se automatski proširiti kada pritisnete tipku Enter ili tabulator."]
[null,"● ","Postavite pokazivač ćelije u zadnju ćeliju iznad retka zbroja, poput ćelije Napomene u tablici Računi za prethodni račun, a zatim pritisnite tabulator."]
[null,"● ","Na kartici Polazno u grupi Ćelije odaberite Umetanje, a zatim  odaberite Redak tablice iznad ili Redak tablice ispod. "]
[null,"● ","U donjem desnom kutu tablice postavite pokazivač na ručicu za promjenu veličine tablice i povucite prema dolje da biste povećali broj redaka u tablici."]
[null,"Analiziranje pojedinosti računa"]
[null,"Kao što je navedeno u odjeljku O tablici za praćenje računa, kada unesete nekoliko računa, možete pogledati njihov popis za određenog klijenta, projekt, određeni datumski interval i još mnogo toga. Ta se vrsta analize provodi pomoću filtra, koji omogućuje brzo smanjivanje popisa podataka. Da biste pristupili filtru za tablice Klijenti, Računi ili Pojedinosti računa, odaberite strelicu padajućeg popisa uz naziv bilo kojeg polja tablice. U oknu Filtar prikazat će se razne mogućnosti filtriranja. Evo nekoliko primjera filtriranja koji će vam olakšati prve korake:"]
[null,"● ","Prikaz ukupnog iznosa koji ste zaračunali određenom kupcu: Na listu Računi – glavni s desne strane polja Broj tvrtke odaberite strelicu padajućeg popisa. U oknu Filtar kliknite Odaberi sve da biste uklonili odabir svih tvrtki, odaberite željenu tvrtku te odaberite U redu. "]
[null,null,"Savjet: U oknu Filtar možete i upisati naziv klijenta u tekstni okvir Pretraživanje da biste brzo pretražili dostupni popis."]
[null,"● ","Prikaz svih računa za određenog klijenta i određene projekte: Krenite od filtriranja prema željenom klijentu pomoću koraka navedenih u prethodnom primjeru. Potom s desne strane broja projekta odaberite strelicu padajućeg popisa. U oknu Filtar odaberite željeni projekt ili projekte, a zatim odaberite U redu. "]
[null,"● ","Prikaz svih računa za prethodni mjesec: Na popisu Računi – glavni s desne strane polja Datum računa odaberite strelicu padajućeg popisa, postavite pokazivač na filtre datuma te odaberite Prethodni mjesec."]
[null,"● ","Prikaz svih klijenata s istim pozivnim brojem: Na listu Računi – glavni s desne strane polja Broj telefona odaberite strelicu padajućeg popisa. U oknu Filtar kliknite unutar tekstnog okvira Pretraživanje, unesite pozivni broj, a zatim odaberite U redu. "]
[null,"Savjeti za filtriranje"]
[null,"● ","Ako tablica ima redak zbroja, kao što je slučaj s tablicama Klijenti i Računi, izračunati ukupni zbrojevi obuhvaćat će samo filtrirani popis."]
[null,"● ","Da biste precizno prilagodili rezultate, upotrijebite više filtara na jednom polju ili na više njih."]
[null,"● ","Da biste očistili jedan filtar, odaberite strelicu padajućeg popisa za prethodno filtrirani stupac i odaberite Očisti filtar iz <naziv polja>."]
[null,"● ","Da biste istovremeno očistili više filtara, postavite pokazivač ćelije u tablicu, na kartici Polazno u grupi Uređivanje odaberite Sortiranje i filtriranje, a zatim Odaberite Očisti."]